Cogmind - Beta 13 @@@ ROGUE MODE // 2024.04.01 @ 21:55:38 Player: alphamind Result: Destroyed by G-47 Trooper with Particle Gun Performance ------------- Evolutions (2) 1000 Regions Visited (4) 800 Robots Destroyed (78) 390 Value Destroyed (1633) 1633 Prototype IDs (7) 140 Alien Tech Used (0) 0 Bonus (0) 0 TOTAL SCORE: 3963 Bonus ------- None Cogmind --------- Core Integrity 0/550 Matter 300/300 Energy 100/100 System Corruption 9% Temperature Cool (27) Movement Core (700) Ox13 Location -8/Materials Parts ------- > --- POWER (1) -------- (None) > --- PROPULSION (3) --- (None) > --- UTILITY (5) ------ High-capacity Storage Unit Visual Processing Unit Transport Network Coupler Improved Utility Shielding System Shield > --- WEAPON (2) ------- (None) > --- INVENTORY (20) --- Light Ion Engine Improved Ion Engine Cooled Ion Engine Light Nuclear Core Light Treads High-capacity Storage Unit Structural Scanner Improved Sensor Array Improved Sensor Array Terrain Scan Processor Advanced Terrain Scan Processor Melee Analysis Suite Reaction Control System Improved Weapon Shielding Light Armor Plating Hardened Light Armor Plating Hammer Peak State ------------ > --- POWER ------------ Cooled Ion Engine > --- PROPULSION ------- Wheel Compact Wheel Compact Wheel > --- UTILITY ---------- High-capacity Storage Unit Visual Processing Unit Improved Sensor Array Transport Network Coupler Improved Utility Shielding > --- WEAPON ----------- Improved Medium Laser Improved Medium Laser > --- INVENTORY -------- Light Ion Engine Improved Ion Engine Cooled Ion Engine Light Treads High-capacity Storage Unit Structural Scanner Improved Sensor Array Terrain Scan Processor Melee Analysis Suite Improved Weapon Shielding Light Armor Plating Hardened Light Armor Plating Particle Gun Improved Medium Laser Improved Medium Laser Improved Medium Laser Improved Medium Laser Heavy Assault Rifle Hammer [Rating: 26] Favorites ----------- Power Light Nuclear Core Engine Cooled Ion Engine Power Core Light Nuclear Core Propulsion Wheel Treads Light Treads Wheel Wheel Utility High-capacity Storage Unit Device Weight Redist. System Storage High-capacity Storage Unit Processor Transport Network Coupler Hackware System Shield Protection Improved Utility Shielding Weapon Improved Medium Laser Energy Gun Improved Medium Laser Energy Cannon Particle Cannon Ballistic Gun Assault Rifle Ballistic Cannon Assault Cannon Impact Weapon Hammer Special Melee Weapon Datajack Build | -11 -10 -10 -9 -8 ------- Run | Yrd Mat Min Mat Mat Slots Evolved 4 | . . . 2 2 Power . | . . . . . Propulsion 1 | . . . 1 . Utility 3 | . . . 1 2 Weapon . | . . . . . Parts Attached 72 | 6 15 1 42 8 Power 9 | 1 1 . 7 . Engine 5 | 1 . . 4 . Core 4 | . 1 . 3 . Reactor . | . . . . . Propulsion 23 | 2 5 1 14 1 Treads 5 | . 2 . 3 . Leg . | . . . . . Wheel 18 | 2 3 1 11 1 Hover . | . . . . . Flight . | . . . . . Utility 13 | 1 3 . 6 3 Device 5 | 1 2 . 1 1 Storage 1 | . 1 . . . Processor 2 | . . . 2 . Hackware 1 | . . . . 1 Protection 4 | . . . 3 1 Artifact . | . . . . . Weapon 27 | 2 6 . 15 4 Energy Gun 11 | . 1 . 10 . Energy Cannon 2 | . . . 2 . Ballistic Gun 7 | 2 3 . 2 . Ballistic Cannon 3 | . . . . 3 Launcher . | . . . . . Special Weapon . | . . . . . Impact Weapon 1 | . . . . 1 Slashing Weapon . | . . . . . Piercing Weapon . | . . . . . Special Melee Weapon 3 | . 2 . 1 . Unidentified Prototypes 5 | . . . 5 . Corrupted Parts 1 | . . . . 1 System Corruption 9 | . . . . 9 Parts Lost 30 | . 3 1 17 9 Power 3 | . . . 2 1 Propulsion 13 | . . 1 8 4 Utility 6 | . 2 . 4 . Weapon 8 | . 1 . 3 4 Highest Loss Streak 5 | . 2 1 5 4 To Critical Strikes . | . . . . . Average Slot Usage (%) 88 | . 94 99 85 82 Engine 4 | . 3 . 5 4 Core 5 | . 10 14 4 . Treads 7 | . . . 13 . Wheel 16 | . 27 27 9 18 Device 6 | . 10 14 4 1 Storage 11 | . 13 14 11 9 Processor 9 | . . . 13 18 Hackware 1 | . . . . 7 Protection 2 | . . . 2 9 Energy Gun 11 | . 7 . 16 8 Energy Cannon 1 | . . . 2 . Ballistic Gun 7 | . 17 28 1 . Naked Turns . | . . . . . Heaviest Build 58 | 7 51 49 58 57 Greatest Support 48 | 20 46 26 48 42 Greatest Overweight (x) 13 | . 2 3 3 13 Average Overweight (x) 1 | . 1 1 1 1 Largest Inventory Capacity 20 | 5 20 20 20 20 Average Capacity 19 | 5 19 20 20 20 Most Carried 20 | 5 20 19 20 20 Average Carried 15 | 1 13 18 17 18 Final Capacity 20 | 5 20 20 20 20 Final Carried 20 | 5 19 18 20 17 Class Distribution -------------------- 56% | Mutant 43% | Scavenger-Mutant Dominant Class ---------------- Mutant | -10/Materials Mutant | -10/Mines Mutant | -9/Materials Scavenger-Mutant | -8/Materials Resources | -11 -10 -10 -9 -8 ----------- Run | Yrd Mat Min Mat Mat Matter Collected 1310 | 338 315 75 422 160 Remotely . | . . . . . Salvage Created 2894 | 142 432 93 1819 408 Parts 159 | 10 25 12 94 18 Haulers Intercepted 9 | . 2 . 6 1 Recyclers Shooed 5 | . . . 5 . Parts Field Recycled . | . . . . . Retrieved Matter . | . . . . . Parts Self-Destructed . | . . . . . Prevented . | . . . . . Kills | -11 -10 -10 -9 -8 ------- Run | Yrd Mat Min Mat Mat Combat Hostiles Destroyed 42 | 1 8 6 21 6 Melee 1 | . . . . 1 Guns 34 | 1 8 6 17 2 Cannons 5 | . . . 3 2 Classes Destroyed 12 | 3 3 1 4 1 Worker 5 | 1 . . 3 1 Builder 4 | . 1 . 2 1 Tunneler 6 | 4 . . 1 1 Hauler 9 | . 2 . 6 1 Recycler 7 | . . . 7 . Watcher 5 | . 1 . 2 2 Swarmer 10 | . . 6 4 . Grunt 23 | 1 8 . 12 2 Brawler 1 | . . . 1 . Duelist 1 | . . . 1 . Sentry 5 | . . . 3 2 Hunter 2 | . . . . 2 Best Kill Streak 4 | 3 2 3 4 3 Combat Bots Only 4 | 1 2 3 4 2 Max Kills in Single Turn 2 | 1 1 2 1 1 Gunslinging 1 | . . 1 . . Exploded . | . . . . . Melee 1 | . . . . 1 Uniques/NPCs Destroyed . | . . . . . Combat | -11 -10 -10 -9 -8 -------- Run | Yrd Mat Min Mat Mat Hostile Shots Fired 405 | 5 49 30 182 139 Missed 104 | 2 11 9 31 51 Damage Taken 4090 | 32 514 211 1901 1432 Core 1108 | 22 139 37 350 560 Absorbed by Shields . | . . . . . Redirected to Shielding 58 | . . . . 58 Regen/Repaired (Parts) 91 | . 91 . . . Core Remaining (%) 41 | 91 . 20 12 . Volleys Fired 247 | 25 56 9 143 14 Largest 2 | 2 2 2 2 2 Hottest 121 | 40 85 40 121 112 Shots Fired 432 | 50 106 18 230 28 Gun 349 | 50 106 18 167 8 Cannon 83 | . . . 63 20 Launcher . | . . . . . Special . | . . . . . Kinetic 193 | 50 84 18 21 20 Thermal 206 | . 22 . 176 8 Explosive . | . . . . . Electromagnetic 33 | . . . 33 . Robot Hit Streak 12 | 5 12 6 8 12 Robot Miss Streak 7 | 4 7 3 5 1 Penetration Max . | . . . . . Secondary Targets 7 | . 3 2 2 . Max Gunslinging Chain 1 | . 1 1 1 . Shots Hit Robots 313 | 28 78 11 161 35 Core Hits 117 | 10 26 6 61 14 Critical Kills 1 | . . . . 1 Critical Parts Destroyed 2 | . . . . 2 Critical Strikes 9 | . 1 . 4 4 Burn 6 | . 1 . 4 1 Smash 3 | . . . . 3 Melee Attacks 35 | . 8 . 11 16 Impact 16 | . . . . 16 Slashing . | . . . . . Piercing . | . . . . . Sneak Attacks 17 | . 6 . 7 4 Combat Hostiles . | . . . . . Follow-up Attacks . | . . . . . Damage Inflicted 4767 | 280 822 138 2559 968 Guns 3080 | 280 822 138 1737 103 Cannons 1172 | . . . 760 412 Explosions 46 | . . . 46 . Melee 453 | . . . . 453 Ramming 16 | . . . 16 . Kinetic 1632 | 280 561 138 241 412 Thermal 2266 | . 261 . 1902 103 Explosive . | . . . . . Electromagnetic 400 | . . . 400 . Impact 453 | . . . . 453 Slashing . | . . . . . Piercing . | . . . . . Highest Corruption 9 | . . . . 9 Average Corruption 9 | . . . . 9 Corruption Purged . | . . . . . Corruption Blocked . | . . . . . Effects 2 | . . . . 2 Heat Flow Errors 1 | . . . . 1 Energy Discharges 1 | . . . . 1 Overload Shots . | . . . . . Overflow Damage 227 | . . . 46 181 Projectiles 28 | . . . 28 . Explosions 18 | . . . 18 . Melee 181 | . . . . 181 Knockbacks 13 | . . . . 13 Impact 3 | . . . . 3 Kinetic 9 | . . . . 9 Secondary 1 | . . . . 1 Self-Inflicted Damage 33 | . . . 33 . Shots 1 | . . . 1 . Rammed 5 | . . . 5 . Targets Rammed 5 | . . . 5 . Kicked . | . . . . . Crushed . | . . . . . Highest Temperature 514 | 18 256 . 514 176 Average Temperature 102 | 12 66 . 118 37 Received Heat Transfer 1395 | 18 282 . 555 540 Effects 13 | . . . 13 . Shutdowns 3 | . . . 3 . Energy Bleed 6 | . . . 6 . Damage (minor) 1 | . . . 1 . Damage (major) 3 | . . . 3 . Siege Activations . | . . . . . Robots Corrupted . | . . . . . Combat Hostiles . | . . . . . Parts Fried 8 | . . . . 8 Impact Corruptions 9 | . . . . 9 Robots Melted 1 | . . . 1 . Combat Hostiles 1 | . . . 1 . Parts Melted 8 | . . . 8 . Heat Transferred 5539 | . 703 . 4540 296 Parts Sabotaged . | . . . . . Parts Stolen . | . . . . . Parts Stripped . | . . . . . Power Chain Reactions 1 | . . . 1 . Alert | -11 -10 -10 -9 -8 ------- Run | Yrd Mat Min Mat Mat Peak Influence 283 | 46 156 175 283 194 Initial 68 | . 29 15 68 40 Average 98 | 22 69 151 114 100 Maximum Alert Level 1 | . . . 1 . Low Security (%) 96 | 100 100 100 93 100 Level 1 3 | . . . 6 . Level 2 . | . . . . . Level 3 . | . . . . . Level 4 . | . . . . . Level 5 . | . . . . . High Security . | . . . . . Max Security . | . . . . . Squads Dispatched 6 | . 2 . 2 2 Investigation 3 | . 1 . 1 1 Extermination . | . . . . . Reinforcement 3 | . 1 . 1 1 Assault . | . . . . . Garrison . | . . . . . Intercept . | . . . . . Searches Triggered . | . . . . . Construction Impeded . | . . . . . Haulers Reinforced . | . . . . . Active Scanning Responses . | . . . . . Cargo Convoy Interrupts . | . . . . . Stealth | -11 -10 -10 -9 -8 --------- Run | Yrd Mat Min Mat Mat Distress Signals 6 | . 2 . 2 2 Communications Jammed . | . . . . . Distress Signals . | . . . . . Times Spotted 86 | 1 19 17 30 19 Peak Tracking Total 15 | 1 4 15 5 10 Tactical Retreats 3 | . . 2 1 . Traps | -11 -10 -10 -9 -8 ------- Run | Yrd Mat Min Mat Mat Traps Triggered 2 | . 1 . . 1 Indirectly . | . . . . . Trap Hack Attempts . | . . . . . Triggered . | . . . . . Disarmed . | . . . . . Reprogrammed . | . . . . . Reused . | . . . . . Traps Extracted . | . . . . . Installed . | . . . . . Triggered . | . . . . . Machines | -11 -10 -10 -9 -8 ---------- Run | Yrd Mat Min Mat Mat Machines Disabled 3 | . 1 . 1 1 Max in Single Turn 1 | . 1 . 1 1 Machines Repaired . | . . . . . Machines Dismantled . | . . . . . Machines Sabotaged . | . . . . . Overloaded Fab Kills . | . . . . . Hacking | -11 -10 -10 -9 -8 --------- Run | Yrd Mat Min Mat Mat Machines Accessed 9 | . 4 . 3 2 Terminals 3 | . 1 . 1 1 Fabricators . | . . . . . Repair Stations 1 | . 1 . . . Recycling Units 4 | . 2 . 1 1 Scanalyzers 1 | . . . 1 . Garrison Access . | . . . . . Total Hacks 33 | . 15 . 7 11 Successful 20 | . 11 . 5 4 Failed 13 | . 4 . 2 7 Catastrophic 3 | . 1 . . 2 Database Lockouts . | . . . . . Manual . | . . . . . Terminals 12 | . 4 . 3 5 Fabricators . | . . . . . Repair Stations 6 | . 6 . . . Recycling Units 12 | . 5 . 1 6 Scanalyzers 3 | . . . 3 . Garrison Access . | . . . . . Terminal Hacks 7 | . 3 . 2 2 Prototype ID Bank 1 | . 1 . . . Alert Level 3 | . . . 2 1 Reinforcement Status 2 | . 1 . . 1 Zone Layout 1 | . 1 . . . Fabricator Hacks . | . . . . . Repair Station Hacks 5 | . 5 . . . Scan Component 2 | . 2 . . . Repair 2 | . 2 . . . Refit 1 | . 1 . . . Recycling Unit Hacks 6 | . 3 . 1 2 Report Inventory 3 | . 2 . . 1 Retrieve Components 3 | . 1 . 1 1 Scanalyzer 2 | . . . 2 . Insert Component 1 | . . . 1 . Analyze 1 | . . . 1 . Garrison Access Hacks . | . . . . . Unauthorized Hacks . | . . . . . Terminals . | . . . . . Fabricators . | . . . . . Repair Stations . | . . . . . Recycling Units . | . . . . . Scanalyzers . | . . . . . Garrison Access . | . . . . . Data Cores Recovered . | . . . . . Used . | . . . . . Hacking Detections 6 | . 3 . 2 1 Full Trace Events 3 | . 1 . 1 1 Feedback Events . | . . . . . Feedback Blocked . | . . . . . Robot Schematics Acquired . | . . . . . Robots Built . | . . . . . Authchips . | . . . . . Time . | . . . . . Total Robot Build Rating . | . . . . . Part Schematics Acquired 1 | . . . 1 . Parts Built . | . . . . . Authchips . | . . . . . Time . | . . . . . Total Part Build Rating . | . . . . . Parts Repaired 2 | . 2 . . . Time 58 | . 58 . . . Parts Recycled . | . . . . . Recycled Matter . | . . . . . Retrieved Matter . | . . . . . Retrieved Components 21 | . 10 . 10 1 Parts Scanalyzed 1 | . . . 1 . Part Schematics Acquired 1 | . . . 1 . Parts Damaged . | . . . . . Bothacking | -11 -10 -10 -9 -8 ------------ Run | Yrd Mat Min Mat Mat Used RIF Installer . | . . . . . Robots Hacked 6 | . 3 . 3 . Non-combat 5 | . 3 . 2 . Combat 1 | . . . 1 . Robot Hacks Applied 10 | . 5 . 5 . parse_system 5 | . 3 . 2 . no_distress 5 | . 2 . 3 . Relay Couplers Released . | . . . . . Fabnet Peak Effective % . | . . . . . Robots Rewired . | . . . . . Allies Hacked . | . . . . . Hacks Repelled . | . . . . . Allies | -11 -10 -10 -9 -8 -------- Run | Yrd Mat Min Mat Mat Total Allies . | . . . . . Largest Group . | . . . . . Highest-Rated Group . | . . . . . Highest-Rated Ally . | . . . . . Total Orders . | . . . . . Ally Attacks . | . . . . . Total Damage . | . . . . . Kills . | . . . . . Allies Corrupted . | . . . . . Allies Melted . | . . . . . Intel | -11 -10 -10 -9 -8 ------- Run | Yrd Mat Min Mat Mat Robot Analysis Total . | . . . . . Derelict Logs Recovered 1 | . . 1 . . Drone Launches . | . . . . . Drone Recoveries . | . . . . . Exploration | -11 -10 -10 -9 -8 ------------- Run | Yrd Mat Min Mat Mat Turns Passed 3800 | 226 918 252 1848 556 Spaces Moved 2010 | 182 621 228 684 295 Core 23 | 21 . . . 2 Treads 358 | . 4 . 354 . Legs . | . . . . . Wheels 1629 | 161 617 228 330 293 Hover . | . . . . . Flight . | . . . . . Fastest Speed 50 | 50 80 95 95 108 Average Speed 129 | 76 103 95 179 123 Slowest Speed 700 | 80 240 125 320 700 Overloaded Moves . | . . . . . Propulsion Burnouts . | . . . . . Robots Hopped . | . . . . . Cave-ins Triggered . | . . . . . Exploration Rate (%) 36 | 10 64 54 36 19 Regions Visited 4 Branch Regions 1 Pre-discovered Areas . | . . . . . Known Exits Taken . | . . . . . Unknown Exits Taken 4 | 1 1 1 1 . Scrap Searched . | . . . . . Spaces Dug . | . . . . . Terrain Destroyed 4 | . . . 3 1 Melee . | . . . . . Projectile 1 | . . . . 1 AOE 3 | . . . 3 . Terrain Rammed . | . . . . . Walls Destroyed . | . . . . . Machines Disabled . | . . . . . Actions | -11 -10 -10 -9 -8 --------- Run | Yrd Mat Min Mat Mat Total 2786 | 223 796 244 1084 439 Wait 270 | . 65 7 115 83 Move 2006 | 181 620 227 683 295 Hop . | . . . . . Pick Up 91 | 11 21 . 47 12 Fast Attach . | . . . . . Attach 71 | 6 14 1 42 8 Detach 26 | . 8 . 17 1 Swap 1 | . 1 . . . Drop 34 | . 3 . 21 10 Fire 247 | 25 56 9 143 14 Melee 35 | . 8 . 11 16 Ram 1 | . . . 1 . Kick . | . . . . . Crush 4 | . . . 4 . Escape Stasis . | . . . . . Rewire . | . . . . . Trap . | . . . . . Miscellaneous . | . . . . . Route ------- -11/Scrapyard -10/Materials (discovered 4 exits: *Mat x2 / [*Min x2]) -10/Mines (discovered 2 exits: *Mat x2) -9/Materials -8/Materials History --------- Turn | Location | Event 2 | -11/Scrapyard | Met Revision 17 44 | -11/Scrapyard | Discovered new exit (range 8) 227 | -11/Scrapyard | Entered Materials 302 | -10/Materials | Build established: Mutant 338 | -10/Materials | Discovered new exit (range 13) 556 | -10/Materials | Discovered new exit (range 14) 641 | -10/Materials | Core integrity fell below 50% 734 | -10/Materials | Discovered new exit (range 6) 876 | -10/Materials | Discovered new exit (range 7) 1110 | -10/Materials | Repaired Particle Gun 1133 | -10/Materials | Build established: Scavenger-Mutant 1137 | -10/Materials | Repaired Wheel? 1145 | -10/Materials | Entered Mines 1249 | -10/Mines | Discovered new exit (range 6) 1257 | -10/Mines | Discovered new exit (range 7) 1282 | -10/Mines | Assembled infested the area 1287 | -10/Mines | Assisted by a Guerilla fighting off Assembled 1328 | -10/Mines | Learned Materials trap positions 1397 | -10/Mines | Entered Materials 1397 | -9/Materials | Evolved 2 slots: Propulsion x1, Utility x1 1398 | -9/Materials | Loaded intel: 5 trap records 1581 | -9/Materials | Lost 3 parts (1n1u1w) 1810 | -9/Materials | Lost 3 parts (2n1u) 1924 | -9/Materials | Core integrity fell below 50% 1986 | -9/Materials | Lost 5 parts (1p2n1u1w) 2095 | -9/Materials | Discovered new exit (range 15) 2227 | -9/Materials | Core integrity fell below 20% 2235 | -9/Materials | Lost 3 parts (1p1u1w) 2797 | -9/Materials | Build established: Mutant 3245 | -9/Materials | Entered another Materials area 3245 | -8/Materials | Evolved 2 slots: Utility x2 3425 | -8/Materials | Build established: Scavenger-Mutant 3593 | -8/Materials | Lost 4 parts (1p2n1w) 3721 | -8/Materials | Core integrity fell below 50% 3777 | -8/Materials | Lost 3 parts (1n2w) 3789 | -8/Materials | Core integrity fell below 20% 3801 | -8/Materials | Destroyed by G-47 Trooper with Particle Gun Last Messages --------------- Integrated Corrupted Wheel (+9). Acquired 23 matter. Acquired 18 matter. Assault Cannon destroyed. Critical hit (Burn: +37). Acquired 13 matter. System corrupted: Energy discharge (-20). Acquired 31 matter. Acquired 17 matter. U-05 Engineer lays Concrete. Acquired 18 matter. U-05 Engineer lays Concrete. System corrupted: Heat flow error (+207). T-07 Excavator is excavating. Wheel destroyed. U-05 Engineer lays Concrete. Critical hit (Burn: +37). U-05 Engineer lays Concrete. U-05 Engineer builds a Wall. Critical hit (Burn: +37). Map ----- +----------------------------------------------------+ | ?????????????????????????????????????????????????? | | ?????????????????????????????????????????????????? | | ?????????????????????????????????????????????????? | | ?????????????????????????????????????????????????? | | ?????????????????????????????????????????????????? | | ?????????????????????????????????????????????????? | | ?????????????????????????????????????????????????? | | ?????????????????????????????????????????????????? | | ?????????????????????????????????????????????????? | | ?????????????????????? ??????????????????????????? | | ??????????????????## ?????????????????????????? | | ??????????????????? ?????????????????????????? | | ??????????????????? ?????????????????????????? | | ???????????????????? ?????????????????????????? | | ???????????????????? ?????????????????????????? | | ????????????????????# ?????????????????????????? | | ??????????????????### ?????????????????????????? | | ???????????????????u# ?????????????????????????? | | ????????????????????k #????????????????????????? | | ????????????????????# #??????????????? ????????? | | ????????????????????# #?????????????? #??????? | | ????????????????##### ##????????????? #??????? | | ????????????????? ##############k #??????? | | ???????????????????# g #??????? | | ???????????????????# T g +??????? | | ???????????????????# @ g #??????? | | ????????a??????????#* ##########???# a #??????? | | ???????????????????## gg####??????????# #??????? | | ????????????????????# g !##?????????# #??????? | | ????????????????????# !#??######## #??????? | | ????????????????????#t !#??# #??????? | | ????????????????????# !#??# %#??????? | | ????????????????????# !#??# ######## | | ????????????????????# !##??# ! | | ????????????????????# ####???# | | ????????????????????# #??????# != """ | | ????????????????????# #??????# != ""% | | ????????????????????# ######## != """ | | ????????????????????# % % | | ????????????????????+ ######## % | | ????????????????????# #??????## ####### "% | | ????????????????????#####???????# #?????# "% % | | ????????????????????????????###?# #????## "" %| | | ???????????????????????###### ###+####?## !%! | | ???????????????######### """ # #??# | | ???????????????# # "Y" !# #### | | ???????????????# """ # # + | | ???????????????# """ # ![!# #### | | ???????????????# """ # ![!# #??###### ## | | ?????????####### # % [[ # #???????# # | +----------------------------------------------------+ Best States ------------- Heat Dissipation 31 Energy Generation 14 Energy Capacity 280 Matter Stores 300 Matter Capacity 300 Sight Range 18 Robot Scan Range 15 Terrain Scan Range 14 Terrain Scan Density 10 Additional Mass Support 6 Armor Coverage 150 Utility Shielding 66 Evasion (%) 50 Recoil Reduction 2 Defensive Hacking 10 Item Schematics ----------------- Datajack | -9/Materials | Scanalyzed Robot Schematics ------------------ None Fabricated ------------ Nothing Alien Tech Used ----------------- None Achievements -------------- Hey, That's Mine! I Survived The Infestation Slippery One Challenges ------------ None Game ------ Seed MagneticGunWings Manual? 0 Play Time 01:32:50 Cumulative 3.4 hours Start 2024.04.01 @ 14:00:57 End 2024.04.01 @ 21:55:38 Sessions 3 Manual Loads 0 Difficulty Rogue Special Mode None Game No. 3 Rogue 3 Adventurer 0 Explorer 0 Win Type - Total 0 Types 0/0/0/0/0/0/0/0/0 Lore% 0 Gallery% 5 Achievement% 5 Wizard Run 0 Options --------- Layout 1 ASCII 0 Keyboard 1 Movement Arrows Keybinds 0 Fullscreen 1 Font 24/Smallcaps Map View 50x35 Zoom Use 1% Tactical HUD 0 Map Filters NONE Filters NONE Steam 1 RUN: 37a6cf78-3cd0-426e-8eb0-714966834a22